bitfinex/quotes_BTCUSD_20241110
["timestamp","ask_amount","ask_price","bid_price","bid_amount"]
[1731225602514,0.14831293,78791.0,78763.0,0.19047014]
[1731225602515,0.17047014,78785.0,78763.0,0.19047014]
[1731225602738,0.15331293,78797.0,78771.0,0.19047014]
[1731225602953,0.19047014,78788.0,78764.0,0.01954701]
[1731225603280,0.19047014,78788.0,78763.0,0.19047014]
[1731225603879,0.19047014,78788.0,78759.0,0.005]
[1731225603880,0.0804,78787.0,78759.0,0.005]
[1731225604038,0.0804,78787.0,78762.0,0.19047014]
[1731225604221,0.19047014,78780.0,78762.0,0.19047014]
[1731225604421,0.0804,78796.0,78770.0,0.19047014]
[1731225604686,0.19047014,78777.0,78768.0,0.15331293]
[1731225604818,0.19047014,78793.0,78774.0,0.14831293]
[1731225605020,0.19047014,78784.0,78775.0,0.01558518]
[1731225605230,0.19047014,78793.0,78770.0,0.005]
[1731225605231,0.19047014,78793.0,78770.0,0.00753869]
[1731225605452,0.19047014,78793.0,78770.0,0.005]
[1731225606881,0.19047014,78793.0,78773.0,0.19047014]
[1731225607084,0.19047014,78793.0,78774.0,0.25085147]
[1731225607282,0.001,78809.0,78784.0,0.1]
[1731225607663,0.001,78809.0,78787.0,0.0798]
[1731225607664,0.03882443,78801.0,78787.0,0.0798]
[1731225607879,0.00389001,78806.0,78789.0,0.023]
[1731225607880,0.000838,78806.0,78789.0,0.023]
[1731225608088,0.000838,78806.0,78792.0,0.14831293]
[1731225608089,0.19047014,78800.0,78792.0,0.14831293]
[1731225608217,0.000838,78806.0,78794.0,0.023]
[1731225608415,0.000838,78806.0,78792.0,0.14831293]
[1731225608416,0.000838,78806.0,78796.0,0.0684]
[1731225608640,0.000838,78806.0,78798.0,0.14831293]
[1731225608838,0.000838,78806.0,78799.0,0.12796519]
[1731225609467,0.000838,78806.0,78799.0,0.12594221]
[1731225609718,0.000838,78806.0,78800.0,0.10202294]
[1731225610029,0.10042014,78820.0,78811.0,0.1]
[1731225610184,0.05354981,78820.0,78812.0,0.12594221]
[1731225610348,0.05354981,78820.0,78813.0,0.1]
[1731225610548,0.00317165,78836.0,78813.0,0.1]
[1731225610549,0.00317165,78836.0,78815.0,0.1]
[1731225610764,0.00317165,78836.0,78817.0,0.1798]
[1731225610966,0.00317165,78836.0,78818.0,0.00202143]
[1731225611415,0.19047014,78828.0,78817.0,0.1454]
[1731225614736,0.16747014,78828.0,78817.0,0.1454]
[1731225614984,0.16747014,78828.0,78816.0,0.12594221]
[1731225615290,0.16747014,78828.0,78814.0,0.0798]
[1731225615498,0.16747014,78828.0,78812.0,0.005]
[1731225615499,0.16747014,78828.0,78813.0,0.023]
[1731225615643,0.16747014,78828.0,78813.0,0.14894221]
[1731225616254,0.14447014,78828.0,78811.0,0.01]
[1731225616499,0.14447014,78828.0,78801.0,0.002]
[1731225617069,0.14447014,78828.0,78808.0,0.1]
[1731225617461,0.14447014,78828.0,78808.0,0.09875708]
[1731225617661,0.14447014,78828.0,78809.0,0.00390393]
[1731225618105,0.14447014,78828.0,78809.0,0.04930393]
[1731225618488,0.14447014,78828.0,78809.0,0.12910393]
[1731225618883,0.14447014,78828.0,78810.0,0.05069]
[1731225619280,0.14447014,78828.0,78811.0,0.00389168]
[1731225620020,0.14447014,78828.0,78811.0,0.02792379]
[1731225620222,0.14447014,78828.0,78811.0,0.00389168]
[1731225620453,0.005,78835.0,78813.0,0.1]
[1731225620661,0.19047014,78828.0,78814.0,0.12594221]
[1731225620781,0.19047014,78828.0,78815.0,0.1]
[1731225620977,0.19047014,78828.0,78816.0,0.00590666]
[1731225621945,0.005,78835.0,78816.0,0.00590666]
[1731225622147,0.005,78835.0,78816.0,0.13184887]
[1731225622351,0.005,78835.0,78817.0,0.1]
[1731225622700,0.005,78835.0,78818.0,0.00386609]
[1731225623460,0.000838,78828.0,78818.0,0.00386609]
[1731225627478,0.000838,78828.0,78818.0,0.00262314]
[1731225627687,0.0758,78827.0,78818.0,0.0036645]
[1731225627873,0.000838,78828.0,78818.0,0.0036645]
[1731225629592,0.005,78835.0,78818.0,0.0036645]
[1731225629804,0.19047014,78829.0,78818.0,0.0036645]
[1731225630001,0.005,78835.0,78818.0,0.0036645]
[1731225631236,0.17247014,78837.0,78818.0,0.0036645]
[1731225631633,0.17247014,78837.0,78818.0,0.0802645]
[1731225631867,0.17247014,78837.0,78819.0,0.1]
[1731225632066,0.17247014,78837.0,78819.0,0.1038815]
[1731225632902,0.000719,78838.0,78827.0,0.1]
[1731225633157,0.000719,78838.0,78828.0,0.00202003]
[1731225633674,0.000719,78838.0,78829.0,0.1]
[1731225633870,0.000719,78846.0,78829.0,0.1]
[1731225633871,0.19047014,78840.0,78830.0,0.00201985]
[1731225634236,0.19047014,78870.0,78830.0,0.00201985]
[1731225634237,0.000719,78852.0,78830.0,0.00201985]
[1731225634431,0.19047014,78846.0,78833.0,0.0766]
[1731225634631,0.19047014,78846.0,78833.0,0.20254221]
[1731225634837,0.19047014,78846.0,78834.0,0.1]
[1731225635220,0.000719,78852.0,78834.0,0.1]
[1731225635644,0.000719,78852.0,78835.0,0.00384043]
[1731225637562,0.000719,78852.0,78835.0,0.00283714]
[1731225637786,0.000719,78852.0,78835.0,0.00381388]
[1731225639090,0.14903193,78852.0,78835.0,0.05405358]
[1731225639258,0.14903193,78852.0,78835.0,0.00381388]
[1731225644597,0.12603193,78852.0,78835.0,0.00381388]
[1731225645493,0.000719,78857.0,78842.0,0.1]
[1731225645658,0.19047014,78852.0,78842.0,0.1]
[1731225645853,0.19047014,78852.0,78843.0,0.00377692]
[1731225646254,0.00388945,78857.0,78843.0,0.00377692]
[1731225646470,0.000719,78857.0,78847.0,0.1]
[1731225646674,0.000719,78857.0,78849.0,0.1777]
[1731225646914,0.000719,78857.0,78850.0,0.00201841]
[1731225647142,0.000839,78852.0,78850.0,0.00201841]
[1731225647538,0.000719,78857.0,78849.0,0.0777]
[1731225648239,0.19047014,78878.0,78854.0,0.123]
[1731225648433,0.19047014,78878.0,78853.0,0.33878307]
[1731225648434,0.19047014,78861.0,78856.0,0.123]
[1731225648653,0.19147014,78869.0,78858.0,0.1]
[1731225648851,0.19147014,78869.0,78860.0,0.1]
[1731225649071,0.001,78869.0,78860.0,0.22594221]
[1731225649206,0.001,78869.0,78862.0,0.1]
[1731225649407,0.001,78869.0,78863.0,0.00413579]
[1731225649663,0.001,78869.0,78864.0,0.12594221]
[1731225649822,0.001,78869.0,78865.0,0.1]
[1731225650019,0.001,78869.0,78867.0,0.1]
[1731225650225,0.001,78869.0,78863.0,0.00413579]
[1731225650226,0.001,78869.0,78868.0,0.12594221]
[1731225650426,0.001,78869.0,78863.0,0.00413579]
[1731225650632,0.001,78869.0,78865.0,0.1]
[1731225650839,0.001,78869.0,78867.0,0.1]
[1731225651058,0.001,78869.0,78868.0,0.22594221]
[1731225651258,0.001,78869.0,78868.0,0.1]
[1731225652077,0.001,78869.0,78863.0,0.10913579]
[1731225652389,0.001,78869.0,78865.0,0.1]
[1731225652548,0.001,78869.0,78867.0,0.1]
[1731225652756,0.001,78869.0,78868.0,0.12594221]
[1731225652941,0.001,78869.0,78868.0,0.10410774]
[1731225653344,0.001,78869.0,78868.0,0.23004995]
[1731225654705,0.001,78869.0,78868.0,0.00410774]
[1731225655023,0.001,78869.0,78862.0,0.105]
[1731225655229,0.001,78869.0,78864.0,0.1]
[1731225655429,0.001,78869.0,78865.0,0.12594221]
[1731225655653,0.001,78869.0,78866.0,0.1]
[1731225656240,0.001,78869.0,78868.0,0.1]
[1731225656534,0.001,78869.0,78868.0,0.23002789]
[1731225657500,0.001,78869.0,78868.0,0.22899919]
[1731225658553,0.001838,78869.0,78868.0,0.22899919]
[1731225659634,0.16930814,78878.0,78868.0,0.27965119]
[1731225659841,0.16930814,78878.0,78869.0,0.1]
[1731225660255,0.16930814,78878.0,78870.0,0.00407522]
[1731225660633,0.001,78889.0,78870.0,0.00407522]
[1731225660634,0.14831293,78874.0,78870.0,0.00407522]
[1731225661050,0.14831293,78874.0,78862.0,0.15271051]
[1731225661239,0.00316947,78885.0,78865.0,0.1]
[1731225661440,0.19047014,78878.0,78865.0,0.1]
[1731225661604,0.14831293,78883.0,78866.0,0.00408109]
[1731225662565,0.19047014,78885.0,78873.0,0.1]
[1731225663667,0.19047014,78885.0,78874.0,0.003708]
[1731225663814,0.19047014,78885.0,78869.0,0.0794]
[1731225663815,0.01322405,78884.0,78869.0,0.0794]
[1731225664015,0.01322405,78884.0,78870.0,0.00371389]
[1731225666521,0.14831293,78883.0,78870.0,0.00371389]
[1731225666720,0.14831293,78883.0,78865.0,0.1]
[1731225667126,0.00316929,78882.0,78865.0,0.1]
[1731225667293,0.00316929,78882.0,78866.0,0.00371979]
[1731225667294,0.14831293,78878.0,78866.0,0.00371979]
[1731225667452,0.14831293,78878.0,78866.0,0.00269017]
[1731225667659,0.14831293,78878.0,78866.0,0.00366012]
[1731225668443,0.1294,78881.0,78866.0,0.00366012]
[1731225669875,0.1294,78881.0,78866.0,0.00498461]
[1731225670228,0.14831293,78869.0,78866.0,0.00498461]
[1731225670436,0.14831293,78875.0,78866.0,0.00498461]
[1731225670611,0.00316977,78874.0,78868.0,0.1]
[1731225670973,0.00316977,78874.0,78854.0,0.050663]
[1731225670974,0.00316977,78874.0,78869.0,0.0043481]
[1731225672228,0.00316977,78879.0,78864.0,0.001676]
[1731225672433,0.12594221,78878.0,78864.0,0.001676]
[1731225672651,0.19363981,78877.0,78864.0,0.001676]
[1731225673351,0.14831293,78875.0,78864.0,0.001676]
[1731225673566,0.12911188,78874.0,78864.0,0.001676]
[1731225673761,0.14831293,78870.0,78865.0,0.00435969]
[1731225673920,0.00316992,78869.0,78864.0,0.001676]
[1731225674117,0.0825,78868.0,78866.0,0.00435967]
[1731225674325,0.00316992,78867.0,78864.0,0.001676]
[1731225674728,0.14831293,78865.0,78864.0,0.001676]
[1731225674953,0.15148301,78865.0,78864.0,0.001676]
[1731225676388,0.12848301,78865.0,78864.0,0.001676]
[1731225677047,0.25442522,78865.0,78864.0,0.001676]
[1731225677336,0.23132352,78865.0,78864.0,0.001676]
[1731225677780,0.23132352,78865.0,78864.0,0.0011611]
[1731225679033,0.12911229,78865.0,78864.0,0.0011611]
[1731225679246,0.12594221,78865.0,78864.0,0.0011611]
[1731225680090,0.05007026,78866.0,78864.0,0.0011611]
[1731225680311,0.0825,78868.0,78864.0,0.0011611]
[1731225680529,0.00317008,78867.0,78864.0,0.0011611]
[1731225681369,0.26994022,78874.0,78864.0,0.0011611]
[1731225681592,0.12594221,78873.0,78864.0,0.0011611]
[1731225681813,0.00316995,78872.0,78864.0,0.0011611]
[1731225682032,0.12594221,78871.0,78864.0,0.0011611]
[1731225682244,0.00316995,78870.0,78864.0,0.0011611]
[1731225683105,0.000838,78865.0,78864.0,0.0011611]
[1731225685519,0.000838,78865.0,78864.0,0.00817204]
[1731225685747,0.000838,78865.0,78864.0,0.0011611]
[1731225685964,0.01322689,78875.0,78864.0,0.0011611]
[1731225686215,0.19047014,78874.0,78864.0,0.0011611]
[1731225686450,0.01322689,78875.0,78864.0,0.0011611]
[1731225686451,0.01322689,78875.0,78866.0,0.1464]
[1731225686679,0.01322689,78875.0,78866.0,0.27234221]
[1731225686897,0.01322689,78875.0,78867.0,0.00790684]
[1731225687133,0.01322689,78875.0,78868.0,0.0772]
[1731225687575,0.01322689,78875.0,78869.0,0.00687658]
[1731225688017,0.01322689,78875.0,78870.0,4.743e-05]
[1731225688451,0.01322689,78875.0,78871.0,0.00772236]
[1731225689783,0.19047014,78885.0,78871.0,0.00772236]
[1731225689784,0.18153503,78885.0,78871.0,0.00772236]
[1731225691377,0.15853503,78885.0,78871.0,0.00772236]
[1731225692160,0.15853503,78885.0,78868.0,0.0772]
[1731225692364,0.15853503,78885.0,78871.0,0.1]
[1731225692566,0.15853503,78885.0,78872.0,0.00774347]
[1731225694843,0.00316918,78884.0,78872.0,0.00774347]
[1731225695043,0.12911139,78884.0,78872.0,0.10774347]
[1731225695309,0.12911139,78884.0,78871.0,0.19047014]
[1731225695509,0.12911139,78884.0,78866.0,0.0464]
[1731225695661,0.12911139,78884.0,78872.0,0.0043565]
[1731225695861,0.12911139,78884.0,78866.0,0.0464]
[1731225696280,0.12911139,78884.0,78867.0,0.00685028]
[1731225696480,0.14831293,78883.0,78867.0,0.00685028]
[1731225696719,0.00316944,78882.0,78867.0,0.00685028]
[1731225697613,0.00316944,78882.0,78867.0,0.00582158]
[1731225697816,0.11911165,78884.0,78867.0,0.00671649]
[1731225698240,0.00316944,78883.0,78867.0,0.00671649]
[1731225699344,0.00316944,78883.0,78871.0,0.1]
[1731225699544,0.11911165,78884.0,78871.0,0.1]
[1731225699741,0.12228109,78884.0,78871.0,0.1]
[1731225699975,0.12228109,78884.0,78872.0,0.00409132]
[1731225700169,0.11911165,78884.0,78872.0,0.00409132]
[1731225700778,0.00316944,78883.0,78864.0,0.0011611]
[1731225700932,0.00316944,78883.0,78870.0,0.19047014]
[1731225701156,0.00316944,78883.0,78871.0,0.1]
[1731225701370,0.00316944,78883.0,78871.0,0.10253552]
[1731225702363,0.00316939,78884.0,78871.0,0.10253552]
[1731225703384,0.000838,78885.0,78872.0,0.00409588]
[1731225703600,0.000838,78885.0,78873.0,0.00253539]
[1731225703978,0.000838,78885.0,78873.0,0.00423058]
[1731225704787,0.17247737,78889.0,78873.0,0.00423058]
[1731225704987,0.29841958,78889.0,78873.0,0.00423058]
[1731225705189,0.29525035,78889.0,78873.0,0.00423058]
[1731225705451,0.19047014,78888.0,78873.0,0.00423058]
[1731225705680,0.00316919,78887.0,78873.0,0.00423058]
[1731225706240,0.17063933,78888.0,78873.0,0.00423058]
[1731225706592,0.00087727,78887.0,78873.0,0.00423058]
[1731225707052,0.00087727,78887.0,78874.0,0.00410162]
[1731225707679,0.3626544,78971.0,78887.0,0.1484851]
[1731225707680,0.000838,78889.0,78887.0,0.1484851]
[1731225707920,0.19130814,78889.0,78888.0,0.1816]
[1731225708141,0.000838,78889.0,78888.0,0.1816]
[1731225711226,0.000838,78889.0,78888.0,0.18413481]
[1731225713478,0.000838,78889.0,78888.0,0.1816]
[1731225714333,0.000838,78889.0,78888.0,0.18413481]
[1731225714741,0.000838,78889.0,78888.0,0.1816]
[1731225715053,0.000838,78889.0,78888.0,0.23669664]
[1731225715642,0.000838,78889.0,78888.0,0.23416183]
[1731225716043,0.000838,78889.0,78888.0,0.1816]
[1731225717681,0.19047014,78897.0,78888.0,0.18057074]
[1731225718770,0.33319834,78906.0,78888.0,0.18057074]
[1731225719366,0.000718,78907.0,78890.0,0.1]
[1731225719577,0.19047014,78906.0,78890.0,0.09987035]
[1731225719781,0.16747014,78906.0,78890.0,0.09987035]
[1731225720008,0.16532276,78906.0,78890.0,0.09987035]
[1731225721374,0.14232276,78906.0,78890.0,0.09987035]
[1731225722003,0.29063569,78906.0,78890.0,0.09987035]
[1731225722172,0.14831293,78901.0,78887.0,0.0484851]
[1731225722381,0.14831293,78901.0,78890.0,0.1]
[1731225726027,0.14831293,78901.0,78882.0,0.0764]
[1731225726255,0.14831293,78901.0,78888.0,0.1]
[1731225726473,0.14831293,78896.0,78888.0,0.1]
[1731225726680,0.20694221,78900.0,78888.0,0.1]
[1731225726681,0.14831293,78890.0,78888.0,0.1]
[1731225726885,0.14831293,78896.0,78888.0,0.1]
[1731225727668,0.14831293,78896.0,78879.0,0.09974309]
[1731225729145,0.19047014,78895.0,78879.0,0.09974309]
[1731225730861,0.081,78900.0,78880.0,0.00253506]
[1731225731069,0.19047014,78897.0,78882.0,0.1]
[1731225731287,0.14232276,78906.0,78884.0,0.1]
[1731225731510,0.19047014,78898.0,78885.0,0.0025348]
[1731225731689,0.19047014,78898.0,78884.0,0.1]
[1731225734383,0.19047014,78898.0,78885.0,0.001676]
[1731225734764,0.16747014,78898.0,78885.0,0.001676]
[1731225736194,0.14447014,78898.0,78885.0,0.001676]
[1731225737718,0.14447014,78898.0,78885.0,0.00064738]
[1731225739235,0.29147369,78906.0,78886.0,0.19047014]
[1731225739453,0.29147369,78906.0,78887.0,0.1]
[1731225739874,0.29147369,78906.0,78888.0,0.00253481]
[1731225740082,0.000838,78906.0,78888.0,0.00253481]
[1731225740292,0.19130814,78906.0,78888.0,0.00253481]
[1731225740931,0.14831293,78902.0,78887.0,0.1]
[1731225741287,0.09706611,78897.0,78887.0,0.1]
[1731225742130,0.09706611,78897.0,78885.0,0.00064738]
[1731225742360,0.09706611,78889.0,78887.0,0.05034555]
[1731225742552,0.09706611,78889.0,78885.0,0.00064738]
[1731225742684,0.09706611,78889.0,78885.0,0.0522733]
[1731225742913,0.09706611,78889.0,78885.0,0.00064738]
[1731225743288,0.083,78891.0,78885.0,0.00064738]
[1731225744136,0.083,78891.0,78885.0,0.05321943]
[1731225744492,0.083,78891.0,78885.0,0.00064738]
[1731225747771,0.083,78891.0,78881.0,0.099618]
[1731225749716,0.06,78891.0,78881.0,0.099618]
[1731225751268,0.037,78891.0,78881.0,0.099618]
[1731225751595,0.037,78891.0,78873.0,0.001676]
[1731225751906,0.037,78891.0,78878.0,0.19047014]
[1731225752109,0.037,78891.0,78879.0,0.1]
[1731225753411,0.037,78891.0,78875.0,0.1]
[1731225755699,0.14794247,78889.0,78873.0,0.001676]
[1731225755913,0.14794247,78884.0,78873.0,0.001676]
[1731225756121,0.14794247,78884.0,78874.0,0.1]
[1731225757771,0.14794247,78884.0,78874.0,0.09974321]
[1731225759425,0.14794247,78884.0,78874.0,0.15274166]
[1731225759935,0.14794247,78884.0,78874.0,0.05299845]
[1731225761305,0.14794247,78884.0,78874.0,0.001676]
[1731225763309,0.09711568,78878.0,78874.0,0.001676]
[1731225764702,0.07411568,78878.0,78874.0,0.001676]
[1731225766483,0.05111568,78878.0,78874.0,0.001676]
[1731225767439,0.02419879,78878.0,78874.0,0.001676]
[1731225767891,0.02419879,78878.0,78874.0,0.0011601]
[1731225768878,0.09711568,78882.0,78874.0,0.0011601]
[1731225769264,0.19047014,78885.0,78874.0,0.0011601]
[1731225769910,0.09711568,78886.0,78874.0,0.0011601]
[1731225770538,0.09711568,78886.0,78874.0,0.05269498]
[1731225770855,0.09711568,78886.0,78874.0,0.0011601]
[1731225771985,0.09711568,78881.0,78874.0,0.0011601]
[1731225773037,0.09711568,78881.0,78874.0,0.05264868]
[1731225773250,0.09711568,78881.0,78874.0,0.0011601]
[1731225773465,0.09711568,78877.0,78874.0,0.0011601]
[1731225776514,0.22305789,78877.0,78874.0,0.0011601]
[1731225777751,0.22305789,78877.0,78874.0,0.0009032]
[1731225777957,0.22305789,78877.0,78873.0,0.05415158]
[1731225778160,0.22305789,78877.0,78871.0,0.001676]
[1731225778598,0.22305789,78877.0,78871.0,0.05263618]
[1731225778728,0.22305789,78877.0,78863.0,0.1]
[1731225779137,0.09711568,78873.0,78863.0,0.1]
[1731225779825,0.07411568,78873.0,78863.0,0.1]
[1731225780029,0.12594221,78877.0,78864.0,0.09732002]
[1731225780232,0.09711568,78869.0,78864.0,0.05172002]
[1731225780376,0.09711568,78869.0,78864.0,0.0011611]
[1731225781337,0.07411568,78869.0,78864.0,0.0011611]
[1731225783733,0.09711568,78872.0,78864.0,0.0011611]
[1731225785532,0.09711568,78872.0,78864.0,0.05253798]
[1731225785709,0.09711568,78872.0,78864.0,0.0011611]
[1731225786285,0.09711568,78875.0,78864.0,0.0011611]
[1731225787696,0.09711568,78875.0,78864.0,0.0006462]
[1731225788057,0.09711568,78875.0,78864.0,0.00013245]
[1731225791393,0.09711568,78875.0,78864.0,4.13e-05]
[1731225794834,0.07411568,78875.0,78864.0,4.13e-05]
[1731225796350,0.05111568,78875.0,78864.0,4.13e-05]
[1731225796890,0.05195468,78875.0,78864.0,4.13e-05]
[1731225799899,0.19047014,78874.0,78864.0,0.05110484]
[1731225800094,0.19047014,78874.0,78864.0,4.13e-05]
[1731225801784,0.09711568,78871.0,78864.0,4.13e-05]
[1731225802550,0.09526568,78871.0,78864.0,4.13e-05]
[1731225804010,0.28758582,78874.0,78864.0,4.13e-05]
[1731225804967,0.09711568,78866.0,78864.0,4.13e-05]
[1731225805410,0.09711568,78870.0,78864.0,4.13e-05]
[1731225805572,0.22305789,78870.0,78864.0,4.13e-05]
[1731225807266,0.22248509,78870.0,78864.0,4.13e-05]
[1731225809805,0.19948509,78870.0,78864.0,4.13e-05]
[1731225811427,0.17648509,78870.0,78864.0,4.13e-05]
[1731225815714,0.12594221,78870.0,78864.0,4.13e-05]
[1731225815953,0.09711568,78869.0,78864.0,4.13e-05]
[1731225816205,0.09711568,78869.0,78864.0,0.05238856]
[1731225816424,0.09711568,78869.0,78864.0,4.13e-05]
[1731225817422,0.12594221,78870.0,78864.0,4.13e-05]
[1731225819934,0.09711568,78868.0,78864.0,4.13e-05]
[1731225823972,0.09711568,78868.0,78864.0,0.05113316]
[1731225824872,0.12594221,78870.0,78864.0,0.05113316]
[1731225826542,0.09711568,78871.0,78864.0,4.13e-05]
[1731225826672,0.22305789,78871.0,78864.0,4.13e-05]
[1731225831011,0.22389689,78871.0,78864.0,4.13e-05]
[1731225831609,0.12678121,78871.0,78864.0,4.13e-05]
[1731225831819,0.22389689,78871.0,78864.0,4.13e-05]
[1731225836396,0.09711568,78867.0,78864.0,4.13e-05]
[1731225839779,0.07411568,78867.0,78864.0,4.13e-05]
[1731225841471,0.41198582,78865.0,78864.0,4.13e-05]
[1731225841683,0.36245789,78865.0,78864.0,4.13e-05]
[1731225842088,0.36245789,78865.0,78839.0,0.19047014]
[1731225842089,0.1244,78851.0,78839.0,0.19047014]
[1731225842295,0.1244,78851.0,78823.0,0.19047014]
[1731225842296,0.09711568,78840.0,78824.0,0.095777]
[1731225842525,0.09711568,78836.0,78835.0,0.05409413]
[1731225842760,0.09711568,78836.0,78825.0,0.0763]
[1731225843177,0.09711568,78836.0,78819.0,0.0763]
[1731225843399,0.09711568,78830.0,78825.0,0.05039847]
[1731225843605,0.09711568,78830.0,78816.0,0.19047014]
[1731225843795,0.09711568,78830.0,78818.0,0.05294594]
[1731225843974,0.09711568,78826.0,78818.0,0.001678]
[1731225845104,0.09711568,78827.0,78818.0,0.001678]
[1731225845226,0.09711568,78831.0,78818.0,0.001678]
[1731225845433,0.22305789,78831.0,78818.0,0.001678]
[1731225847044,0.0763,78845.0,78829.0,0.09711568]
[1731225847277,0.005,78853.0,78828.0,0.1]
[1731225847278,0.19047014,78837.0,78828.0,0.1]
[1731225847727,0.12594221,78844.0,78828.0,0.1]
[1731225847899,0.19047014,78839.0,78828.0,0.1]
[1731225848347,0.28758582,78839.0,78828.0,0.1]
[1731225848569,0.28758582,78839.0,78827.0,0.1214]
[1731225848570,0.09711568,78831.0,78818.0,0.001678]
[1731225848810,0.09711568,78824.0,78818.0,0.001678]
[1731225849224,0.09711568,78828.0,78818.0,0.001678]
[1731225850581,0.09711568,78823.0,78818.0,0.001678]
[1731225850809,0.12594221,78828.0,78818.0,0.001678]
[1731225851182,0.19047014,78827.0,78818.0,0.001678]
[1731225851920,0.19047014,78827.0,78819.0,0.00598427]
[1731225852536,0.12594221,78828.0,78819.0,0.00598427]
[1731225853362,0.0763,78837.0,78819.0,0.00598427]
[1731225853562,0.19047014,78831.0,78828.0,0.09711568]
[1731225853922,0.19047014,78831.0,78821.0,0.1]
[1731225853923,0.19047014,78831.0,78824.0,0.09711568]
[1731225854095,0.12594221,78836.0,78824.0,0.09711568]
[1731225854920,0.19047014,78839.0,78824.0,0.09711568]
[1731225855120,0.12594221,78838.0,78824.0,0.09711568]
[1731225855345,0.10294221,78838.0,78824.0,0.09711568]
[1731225855479,0.10294221,78838.0,78825.0,0.10429311]
[1731225856452,0.07994221,78838.0,78825.0,0.10429311]
[1731225856653,0.07994221,78838.0,78825.0,0.00429311]
[1731225857001,0.005,78846.0,78823.0,0.0451]
[1731225857002,0.19047014,78848.0,78833.0,0.09711568]
[1731225857205,0.19047014,78840.0,78833.0,0.09711568]
[1731225857411,0.19047014,78848.0,78834.0,0.10607049]
[1731225857606,0.19047014,78847.0,78837.0,0.0763]
[1731225857978,0.19047014,78847.0,78838.0,0.19893138]
[1731225858308,0.19047014,78847.0,78838.0,0.19711568]
[1731225858996,0.19047014,78847.0,78837.0,0.0763]
[1731225860288,0.19047014,78856.0,78837.0,0.0763]
[1731225860460,0.17373779,78855.0,78837.0,0.0763]
[1731225863140,0.17373779,78855.0,78838.0,0.1475]
[1731225863342,0.005,78863.0,78838.0,0.1475]
[1731225863343,0.0871,78866.0,78844.0,0.1]
[1731225863541,0.19047014,78855.0,78844.0,0.1]
[1731225863928,0.31641235,78865.0,78849.0,0.14808565]
[1731225864224,0.31641235,78865.0,78845.0,0.07803642]
[1731225864225,0.19047014,78857.0,78850.0,0.1]
[1731225864443,0.31641235,78865.0,78850.0,0.1]
[1731225865080,0.31641235,78865.0,78850.0,0.01755]
[1731225865254,0.31641235,78865.0,78845.0,0.0755]
[1731225868159,0.19047014,78865.0,78846.0,0.00253629]
[1731225868375,0.19047014,78865.0,78848.0,0.14808565]
[1731225868581,0.19130914,78865.0,78849.0,0.1]
[1731225869804,0.16830914,78865.0,78849.0,0.1]
[1731225871425,0.14530914,78865.0,78850.0,0.0475]
[1731225872450,0.000839,78865.0,78859.0,0.1]
[1731225872809,0.000839,78865.0,78860.0,0.0755]
[1731225874766,0.000839,78865.0,78861.0,0.15062153]
[1731225874897,0.000839,78865.0,78861.0,0.00253588]
[1731225875098,0.000839,78865.0,78864.0,0.1]
[1731225875395,0.000839,78865.0,78864.0,0.1500358]
[1731225877842,0.000839,78865.0,78864.0,0.0500358]
[1731225878349,0.000839,78865.0,78864.0,0.0475]
[1731225879922,0.000839,78865.0,78860.0,0.0755]
[1731225880121,0.000839,78865.0,78861.0,0.1]
[1731225881259,0.000839,78865.0,78849.0,0.049278]
[1731225881260,0.19047014,78864.0,78849.0,0.049278]
[1731225881468,0.000839,78865.0,78851.0,0.29047014]
[1731225881671,0.000839,78865.0,78851.0,0.1]
[1731225883180,0.19047014,78864.0,78851.0,0.1]
[1731225884236,0.000839,78865.0,78851.0,0.1]
[1731225884437,0.19047014,78864.0,78851.0,0.1]
[1731225884779,0.16747014,78864.0,78851.0,0.1]
[1731225886304,0.14447014,78864.0,78851.0,0.1]
[1731225887522,0.14447014,78864.0,78849.0,0.001678]
[1731225887523,0.19047014,78856.0,78849.0,0.001678]
[1731225887722,0.000839,78865.0,78855.0,0.1]
[1731225887921,0.000839,78865.0,78864.0,0.1]
[1731225888146,0.000839,78865.0,78864.0,0.24808565]
[1731225889901,0.000839,78865.0,78857.0,0.1476]
[1731225890132,0.000839,78865.0,78864.0,0.24808565]
[1731225890404,0.000839,78865.0,78864.0,0.1]
[1731225890561,0.000839,78865.0,78864.0,0.24808565]
[1731225895587,0.000839,78865.0,78864.0,0.30014085]
[1731225897613,0.000839,78865.0,78864.0,0.37402786]
[1731225897839,0.000839,78865.0,78864.0,0.45102786]
[1731225898046,0.000839,78865.0,78864.0,0.49862786]
[1731225898363,0.000839,78865.0,78864.0,0.35054221]
[1731225898662,0.000839,78865.0,78864.0,0.52162786]
[1731225898893,0.000839,78865.0,78864.0,0.38354221]
[1731225899106,0.000839,78865.0,78864.0,0.67971351]
[1731225899276,0.000839,78865.0,78864.0,0.68471351]
[1731225899873,0.000839,78865.0,78864.0,0.53662786]
[1731225901233,0.000839,78870.0,78864.0,0.53662786]
[1731225901426,0.17166514,78883.0,78874.0,0.14808565]
[1731225901640,0.19047014,78875.0,78874.0,0.24808565]
[1731225901846,0.17166514,78883.0,78875.0,0.1]
[1731225901996,0.14866514,78883.0,78875.0,0.1]
[1731225903407,0.000838,78885.0,78875.0,0.1]
[1731225906435,0.000838,78885.0,78869.0,0.14808565]
[1731225906646,0.000838,78885.0,78870.0,0.22594221]
[1731225907824,0.19047014,78884.0,78870.0,0.22594221]
[1731225913525,0.000838,78885.0,78877.0,0.09708299]
[1731225913755,0.000838,78885.0,78875.0,0.1]
[1731225913756,0.19047014,78883.0,78876.0,0.09708299]
[1731225914411,0.000838,78885.0,78876.0,0.09708299]
[1731225915702,0.023876,78895.0,78876.0,0.09708299]
[1731225915907,0.19047014,78888.0,78876.0,0.09708299]
[1731225916119,0.19047014,78888.0,78877.0,0.1]
[1731225916556,0.16747014,78888.0,78877.0,0.1]
[1731225916823,0.000839,78884.0,78877.0,0.1]
[1731225917245,0.000839,78884.0,78870.0,0.001678]
[1731225917455,0.0791,78883.0,78870.0,0.001678]
[1731225917667,0.19047014,78880.0,78870.0,0.001678]
[1731225917886,0.0791,78879.0,78870.0,0.001678]
[1731225918732,0.0477,78878.0,78870.0,0.001678]
[1731225923415,0.19047014,78877.0,78870.0,0.001678]
[1731225923676,0.000839,78884.0,78870.0,0.001678]
[1731225923851,0.12594221,78883.0,78870.0,0.001678]